Cogmind - Beta 13 @@@ ROGUE MODE // 2024.05.03 @ 14:29:08 Player: ElectroBlueGuy Result: Destroyed by G-34 Mercenary with Small Laser Performance ------------- Evolutions (0) 0 Regions Visited (1) 200 Robots Destroyed (6) 30 Value Destroyed (137) 137 Prototype IDs (0) 0 Alien Tech Used (0) 0 Bonus (0) 0 TOTAL SCORE: 367 Bonus ------- None Cogmind --------- Core Integrity 0/250 Matter 217/300 Energy 100/100 System Corruption 4% Temperature Cool (6) Movement Core (550) Ox10 Location -10/Materials Parts ------- > --- POWER (1) -------- (None) > --- PROPULSION (2) --- (None) > --- UTILITY (2) ------ Large Storage Unit Medium Armor Plating > --- WEAPON (2) ------- Flail Flail > --- INVENTORY (15) --- Medium Laser Medium Laser Small Laser Peak State ------------ > --- POWER ------------ Ion Engine > --- PROPULSION ------- Aluminum Leg Aluminum Leg > --- UTILITY ---------- Large Storage Unit Signal Interpreter > --- WEAPON ----------- Grenade Launcher Flail > --- INVENTORY -------- Light Ion Engine Medium Laser Medium Laser Small Laser [Rating: 8] Favorites ----------- Power Ion Engine Engine Ion Engine Propulsion Aluminum Leg Leg Aluminum Leg Utility Large Storage Unit Storage Large Storage Unit Processor Signal Interpreter Protection Medium Armor Plating Weapon Medium Laser Energy Gun Medium Laser Launcher Grenade Launcher Impact Weapon Flail Build | -11 -10 ------- Run | Yrd Mat Slots Evolved . | . . Power . | . . Propulsion . | . . Utility . | . . Weapon . | . . Parts Attached 13 | 6 7 Power 2 | 1 1 Engine 2 | 1 1 Core . | . . Reactor . | . . Propulsion 2 | 2 . Treads . | . . Leg 2 | 2 . Wheel . | . . Hover . | . . Flight . | . . Utility 4 | 1 3 Device . | . . Storage 2 | 1 1 Processor 1 | . 1 Hackware . | . . Protection 1 | . 1 Artifact . | . . Weapon 5 | 2 3 Energy Gun 2 | 2 . Energy Cannon . | . . Ballistic Gun . | . . Ballistic Cannon . | . . Launcher 1 | . 1 Special Weapon . | . . Impact Weapon 2 | . 2 Slashing Weapon . | . . Piercing Weapon . | . . Special Melee Weapon . | . . Unidentified Prototypes . | . . Parts Lost 6 | . 6 Power 2 | . 2 Propulsion 2 | . 2 Utility 1 | . 1 Weapon 1 | . 1 Highest Loss Streak 6 | . 6 To Critical Strikes . | . . Average Slot Usage (%) 90 | . 90 Engine 12 | . 12 Leg 24 | . 24 Storage 14 | . 14 Processor 10 | . 10 Protection 1 | . 1 Energy Gun 19 | . 19 Launcher 2 | . 2 Impact Weapon 4 | . 4 Naked Turns . | . . Heaviest Build 30 | 14 30 Greatest Support 20 | 20 20 Greatest Overweight (x) 1 | 1 1 Average Overweight (x) . | . . Largest Inventory Capacity 15 | 8 15 Average Capacity 13 | 6 14 Most Carried 6 | 5 6 Average Carried 2 | 2 2 Final Capacity 15 | 8 15 Final Carried 3 | 2 3 Class Distribution -------------------- 100% | Mutant Dominant Class ---------------- Mutant | -10/Materials Resources | -11 -10 ----------- Run | Yrd Mat Matter Collected 237 | 196 41 Remotely . | . . Salvage Created 128 | . 128 Parts 6 | . 6 Haulers Intercepted . | . . Recyclers Shooed . | . . Parts Field Recycled . | . . Retrieved Matter . | . . Parts Self-Destructed . | . . Prevented . | . . Kills | -11 -10 ------- Run | Yrd Mat Combat Hostiles Destroyed 5 | . 5 Melee 1 | . 1 Guns 3 | . 3 Classes Destroyed 3 | . 3 Watcher 1 | . 1 Swarmer 3 | . 3 Grunt 2 | . 2 Best Kill Streak 3 | . 3 Combat Bots Only 3 | . 3 Max Kills in Single Turn 1 | . 1 Gunslinging . | . . Exploded . | . . Melee 1 | . 1 Uniques/NPCs Destroyed . | . . Combat | -11 -10 -------- Run | Yrd Mat Hostile Shots Fired 81 | . 81 Missed 17 | . 17 Damage Taken 815 | . 815 Core 259 | . 259 Absorbed by Shields . | . . Core Remaining (%) 100 | 100 . Volleys Fired 7 | . 7 Largest 2 | . 2 Hottest 100 | . 100 Shots Fired 12 | . 12 Gun 10 | . 10 Cannon . | . . Launcher 2 | . 2 Special . | . . Kinetic . | . . Thermal 10 | . 10 Explosive 2 | . 2 Electromagnetic . | . . Robot Hit Streak 3 | . 3 Robot Miss Streak 2 | . 2 Penetration Max . | . . Secondary Targets . | . . Shots Hit Robots 16 | . 16 Core Hits 8 | . 8 Critical Kills . | . . Critical Parts Destroyed 1 | . 1 Critical Strikes 2 | . 2 Burn 1 | . 1 Smash 1 | . 1 Melee Attacks 17 | . 17 Impact 17 | . 17 Slashing . | . . Piercing . | . . Sneak Attacks . | . . Combat Hostiles . | . . Follow-up Attacks . | . . Damage Inflicted 523 | . 523 Guns 48 | . 48 Cannons . | . . Explosions 164 | . 164 Melee 311 | . 311 Ramming . | . . Kinetic . | . . Thermal 48 | . 48 Explosive 164 | . 164 Electromagnetic . | . . Impact 311 | . 311 Slashing . | . . Piercing . | . . Highest Corruption 4 | . 4 Average Corruption 4 | . 4 Corruption Purged . | . . Corruption Blocked . | . . Effects 1 | . 1 Data Loss (major) 1 | . 1 Overload Shots . | . . Overflow Damage 49 | . 49 Projectiles . | . . Explosions . | . . Melee 49 | . 49 Knockbacks . | . . Impact . | . . Kinetic . | . . Secondary . | . . Self-Inflicted Damage 7 | . 7 Shots 1 | . 1 Rammed . | . . Targets Rammed . | . . Kicked . | . . Crushed . | . . Highest Temperature 78 | . 78 Average Temperature 33 | . 33 Received Heat Transfer 360 | . 360 Siege Activations . | . . Robots Corrupted . | . . Combat Hostiles . | . . Parts Fried . | . . Impact Corruptions 2 | . 2 Robots Melted . | . . Combat Hostiles . | . . Parts Melted . | . . Heat Transferred 222 | . 222 Parts Sabotaged . | . . Parts Stolen . | . . Parts Stripped . | . . Power Chain Reactions . | . . Alert | -11 -10 ------- Run | Yrd Mat Peak Influence 155 | . 155 Initial . | . . Average 79 | . 95 Maximum Alert Level . | . . Low Security (%) 100 | 100 100 Level 1 . | . . Level 2 . | . . Level 3 . | . . Level 4 . | . . Level 5 . | . . High Security . | . . Max Security . | . . Squads Dispatched 1 | . 1 Investigation . | . . Extermination . | . . Reinforcement 1 | . 1 Assault . | . . Garrison . | . . Intercept . | . . Searches Triggered . | . . Construction Impeded . | . . Haulers Reinforced . | . . Active Scanning Responses . | . . Cargo Convoy Interrupts . | . . Stealth | -11 -10 --------- Run | Yrd Mat Distress Signals . | . . Communications Jammed . | . . Distress Signals . | . . Times Spotted 10 | . 10 Peak Tracking Total 5 | . 5 Tactical Retreats 1 | . 1 Traps | -11 -10 ------- Run | Yrd Mat Traps Triggered . | . . Indirectly . | . . Trap Hack Attempts . | . . Triggered . | . . Disarmed . | . . Reprogrammed . | . . Reused . | . . Traps Extracted . | . . Installed . | . . Triggered . | . . Machines | -11 -10 ---------- Run | Yrd Mat Machines Disabled 1 | . 1 Max in Single Turn 1 | . 1 Machines Repaired . | . . Machines Dismantled . | . . Machines Sabotaged . | . . Overloaded Fab Kills . | . . Hacking | -11 -10 --------- Run | Yrd Mat Machines Accessed 1 | . 1 Terminals 1 | . 1 Fabricators . | . . Repair Stations . | . . Recycling Units . | . . Scanalyzers . | . . Garrison Access . | . . Total Hacks 4 | . 4 Successful 4 | . 4 Failed . | . . Catastrophic . | . . Database Lockouts . | . . Manual . | . . Terminals 4 | . 4 Fabricators . | . . Repair Stations . | . . Recycling Units . | . . Scanalyzers . | . . Garrison Access . | . . Terminal Hacks 4 | . 4 Emergency Access Points 1 | . 1 Locate Traps 1 | . 1 Hauler Manifests 1 | . 1 Zone Layout 1 | . 1 Fabricator Hacks . | . . Repair Station Hacks . | . . Recycling Unit Hacks . | . . Scanalyzer . | . . Garrison Access Hacks . | . . Unauthorized Hacks . | . . Terminals . | . . Fabricators . | . . Repair Stations . | . . Recycling Units . | . . Scanalyzers . | . . Garrison Access . | . . Data Cores Recovered . | . . Used . | . . Hacking Detections 1 | . 1 Full Trace Events . | . . Feedback Events . | . . Feedback Blocked . | . . Robot Schematics Acquired . | . . Robots Built . | . . Authchips . | . . Time . | . . Total Robot Build Rating . | . . Part Schematics Acquired . | . . Parts Built . | . . Authchips . | . . Time . | . . Total Part Build Rating . | . . Parts Repaired . | . . Time . | . . Parts Recycled . | . . Recycled Matter . | . . Retrieved Matter . | . . Retrieved Components . | . . Parts Scanalyzed . | . . Part Schematics Acquired . | . . Parts Damaged . | . . Bothacking | -11 -10 ------------ Run | Yrd Mat Used RIF Installer . | . . Robots Hacked . | . . Non-combat . | . . Combat . | . . Robot Hacks Applied . | . . Relay Couplers Released . | . . Fabnet Peak Effective % . | . . Robots Rewired . | . . Allies Hacked . | . . Hacks Repelled . | . . Allies | -11 -10 -------- Run | Yrd Mat Total Allies . | . . Largest Group . | . . Highest-Rated Group . | . . Highest-Rated Ally . | . . Total Orders . | . . Ally Attacks . | . . Total Damage . | . . Kills . | . . Allies Corrupted . | . . Allies Melted . | . . Intel | -11 -10 ------- Run | Yrd Mat Robot Analysis Total . | . . Derelict Logs Recovered . | . . Drone Launches . | . . Drone Recoveries . | . . Exploration | -11 -10 ------------- Run | Yrd Mat Turns Passed 312 | 51 261 Spaces Moved 130 | 36 94 Core 10 | 10 . Treads . | . . Legs 120 | 26 94 Wheels . | . . Hover . | . . Flight . | . . Fastest Speed 50 | 50 120 Average Speed 162 | 104 184 Slowest Speed 190 | 190 190 Overloaded Moves . | . . Propulsion Burnouts . | . . Robots Hopped . | . . Cave-ins Triggered 1 | . 1 Exploration Rate (%) 13 | 3 23 Regions Visited 1 Branch Regions . Pre-discovered Areas . | . . Known Exits Taken . | . . Unknown Exits Taken 1 | 1 . Scrap Searched . | . . Spaces Dug . | . . Terrain Destroyed 8 | . 8 Melee . | . . Projectile . | . . AOE 8 | . 8 Terrain Rammed . | . . Walls Destroyed . | . . Machines Disabled . | . . Actions | -11 -10 --------- Run | Yrd Mat Total 193 | 49 144 Wait 12 | . 12 Move 129 | 35 94 Hop . | . . Pick Up 14 | 8 6 Fast Attach . | . . Attach 10 | 6 4 Detach . | . . Swap 3 | . 3 Drop 1 | . 1 Fire 7 | . 7 Melee 17 | . 17 Ram . | . . Kick . | . . Crush . | . . Escape Stasis . | . . Rewire . | . . Trap . | . . Miscellaneous . | . . Route ------- -11/Scrapyard -10/Materials History --------- Turn | Location | Event 6 | -11/Scrapyard | Discovered new exit (range 15) 52 | -11/Scrapyard | Entered Materials 284 | -10/Materials | Core integrity fell below 50% 295 | -10/Materials | Core integrity fell below 20% 296 | -10/Materials | Crushed by falling debris 313 | -10/Materials | Destroyed by G-34 Mercenary with Small Laser Last Messages --------------- 00284_ U-05 Engineer lays Concrete. 00286_ Aluminum Leg destroyed. 00286_ U-05 Engineer builds a Wall. 00286_ U-05 Engineer lays Concrete. 00291_ U-05 Engineer builds a Wall. 00293_ U-05 Engineer lays Concrete. 00294_ Destroyed Aluminum Leg. 00294_ G-47 Trooper system corrupted by crushing effect. 00295_ G-47 Trooper system terminally corrupted. 00295_ U-05 Engineer lays Concrete. 00296_ The unstable cave ceiling collapses. 00296_ Crushed by falling debris. 00296_ Signal Interpreter destroyed. 00296_ System corrupted by crushing effect (+3). 00296_ Lgt. Ion Engine destroyed. 00296_ System corrupted by crushing effect (+1). 00296_ U-05 Engineer builds a Wall. 00301_ System corrupted: Substantial component data lost. Map ----- +----------------------------------------------------+ | ??????????????????????????????????? | | ??????????????????????????????????? | | ??????????????????????????????????? | | ??????????????????????????????????? | | ????????????????????^^^???????????? | | ??????????????######??????????????? | | ????????????? ??????????????? | | ????????????? ??????????????? | | ?????????? ? ??????????????? | | ?????????? #??????????????? | | ?????????# #??????????????? | | ?????????# #??????????????? | | ? # # #????? | | ? # """ # #????? | | ?#####+### """ ##+########????? | | ? # """ #?????????? | | ? + ########??? | | ? #u # ??? | | ? # """ # ??? | | ? """ # """ # ??? | | ? """ # """ # ??? | | ? """ # """ + """ ""??? | | ? # """ # """ ""??? | | ?#########g% """ # """ ""??? | | ????######g# #### # ??? | | ????# @### ## #######+??? | | ????#==! #???#" """ ##### ??? | | ????#==!!//#???#T """ + ??? | | ????########???#" """ ##### "??? | | ???????????????## """ #???# "??? | | ????????????????# #???# "??? | | ????????????????# #???# ??? | | ??????########### """ #???# ??? | | ??????# ^ ## """ #???# ??? | | ??????# # """ ########?? | | ??????# """ # """ ?? | | ??????# ^""""" + ?? | | ??????#^ """"" # ?? | | ??????# ^""""" # ###########??? | | ??????#^ """ # #????# ??? | | ??????# ^ # #????#""" ??? | | ??????# # #????#""" ??? | | ??????########## #????#""" ??? | | ?????????# # #????????????? | | ?????????# #????????????? | | ?????????# [ #????????????? | | ?????????# =%= #????????????? | | ?????????# ##/#######?????????? | | ?????????## ##%*= #?????????? | | ??????????# ## #?????????? | +----------------------------------------------------+ Best States ------------- Heat Dissipation 25 Energy Generation 10 Energy Capacity 250 Matter Stores 257 Matter Capacity 300 Sight Range 16 Terrain Scan Density 10 Armor Coverage 225 Evasion (%) 55 Item Schematics ----------------- None Robot Schematics ------------------ None Fabricated ------------ Nothing Alien Tech Used ----------------- None Achievements -------------- None Challenges ------------ None Game ------ Seed ActuatorAntimatterSink Manual? 0 Play Time 00:06:40 Cumulative 5.2 hours Start 2024.05.03 @ 14:25:16 End 2024.05.03 @ 14:29:08 Sessions 1 Manual Loads 0 Difficulty Rogue Special Mode None Game No. 13 Rogue 13 Adventurer 0 Explorer 0 Win Type - Total 0 Types 0/0/0/0/0/0/0/0/0 Lore% 1 Gallery% 13 Achievement% 8 Wizard Run 0 Options --------- Layout 1 ASCII 0 Keyboard 1 Movement Numpad Keybinds 0 Fullscreen 1 Font 24/Smallcaps Map View 50x35 Zoom Use 0% Tactical HUD 1 Map Filters NONE Filters NONE Steam 1 RUN: 6a77b677-d257-45fa-9497-f0681f99723d